[Event "Titled Tuesday Blitz June 6 Early 2023"]
[White "Svane, Rasmus"]
[Black "Hakobyan, Aram"]
[WhiteFideId "4657101"]
[BlackFideId "13306677"]
[WhiteElo "2601"]
[BlackElo "2584"]
[Result "0-1"]
[Round "11"]
[TimeControl "180+2"]
[Date "2023.06.06"]
[WhiteClock "0:00:15"]
[BlackClock "0:00:20"]
[Board "4"]

1. Nf3 {[%clk 0:03:00]}  g6 {[%clk 0:03:00]} 2. d4 {[%clk 0:02:59]}  Bg7 {[%clk 0:03:01]} 3. g3 {[%clk 0:03:00]}  d6 {[%clk 0:03:02]} 4. Bg2 {[%clk 0:03:00]}  Nf6 {[%clk 0:03:02]} 5. O-O {[%clk 0:03:00]}  O-O {[%clk 0:03:03]} 6. Re1 {[%clk 0:03:01]}  Bf5 {[%clk 0:03:03]} 7. Nbd2 {[%clk 0:03:01]}  d5 {[%clk 0:03:02]} 8. c3 {[%clk 0:03:01]}  Nbd7 {[%clk 0:02:59]} 9. Nh4 {[%clk 0:02:48]}  Bg4 {[%clk 0:02:56]} 10. Qb3 {[%clk 0:02:47]}  c5 {[%clk 0:02:52]} 11. Qxb7 {[%clk 0:02:36]}  cxd4 {[%clk 0:02:49]} 12. cxd4 {[%clk 0:02:36]}  e5 {[%clk 0:02:42]} 13. dxe5 {[%clk 0:02:32]}  Nxe5 {[%clk 0:02:43]} 14. Nhf3 {[%clk 0:02:32]}  Rb8 {[%clk 0:02:38]} 15. Qxa7 {[%clk 0:02:27]}  Nc6 {[%clk 0:02:33]} 16. Qa4 {[%clk 0:02:18]}  Qb6 {[%clk 0:02:27]} 17. Nb3 {[%clk 0:02:03]}  Rfe8 {[%clk 0:02:24]} 18. Nbd4 {[%clk 0:01:29]}  Bd7 {[%clk 0:02:08]} 19. Nxc6 {[%clk 0:01:25]}  Bxc6 {[%clk 0:02:09]} 20. Qd4 {[%clk 0:01:24]}  Qa6 {[%clk 0:02:02]} 21. Bf4 {[%clk 0:01:21]}  Ng4 {[%clk 0:01:33]} 22. Qd1 {[%clk 0:00:59]}  Rxb2 {[%clk 0:01:18]} 23. h3 {[%clk 0:00:59]}  Nxf2 {[%clk 0:00:52]} 24. Kxf2 {[%clk 0:00:59]}  Qb6+ {[%clk 0:00:52]} 25. Kf1 {[%clk 0:00:56]}  Bc3 {[%clk 0:00:52]} 26. Bd2 {[%clk 0:00:18]}  d4 {[%clk 0:00:48]} 27. Bxc3 {[%clk 0:00:18]}  dxc3 {[%clk 0:00:49]} 28. Qd4 {[%clk 0:00:18]}  Bxf3 {[%clk 0:00:46]} 29. Qxb6 {[%clk 0:00:14]}  Bxg2+ {[%clk 0:00:47]} 30. Kxg2 {[%clk 0:00:15]}  Rxb6 {[%clk 0:00:48]} 31. a4 {[%clk 0:00:13]}  Re5 {[%clk 0:00:42]} 32. Ra3 {[%clk 0:00:07]}  c2 {[%clk 0:00:39]} 33. Raa1 {[%clk 0:00:08]}  Rd6 {[%clk 0:00:21]} 34. Kf2 {[%clk 0:00:07]}  Rf6+ {[%clk 0:00:12]} 35. Kg1 {[%clk 0:00:08]}  Rd6 {[%clk 0:00:12]} 36. Kf2 {[%clk 0:00:07]}  h5 {[%clk 0:00:13]} 37. a5 {[%clk 0:00:06]}  Rf6+ {[%clk 0:00:13]} 38. Kg2 {[%clk 0:00:07]}  Ra6 {[%clk 0:00:14]} 39. Ra2 {[%clk 0:00:03]}  Rxe2+ {[%clk 0:00:07]} 40. Rxe2 {[%clk 0:00:02]}  c1=Q {[%clk 0:00:07]} 41. Rec2 {[%clk 0:00:01]}  Qb1 {[%clk 0:00:08]} 42. Re2 {[%clk 0:00:02]}  Kg7 {[%clk 0:00:08]} 43. Kf2 {[%clk 0:00:02]}  Qb8 {[%clk 0:00:08]} 44. h4 {[%clk 0:00:03]}  Qa7+ {[%clk 0:00:09]} 45. Kg2 {[%clk 0:00:03]}  Rxa5 {[%clk 0:00:10]} 46. Rxa5 {[%clk 0:00:04]}  Qxa5 {[%clk 0:00:11]} 47. Rf2 {[%clk 0:00:04]}  Qa8+ {[%clk 0:00:11]} 48. Kh2 {[%clk 0:00:04]}  Qd5 {[%clk 0:00:12]} 49. Re2 {[%clk 0:00:05]}  Qf5 {[%clk 0:00:12]} 50. Rd2 {[%clk 0:00:05]}  Qb1 {[%clk 0:00:12]} 51. Rf2 {[%clk 0:00:05]}  f6 {[%clk 0:00:13]} 52. Re2 {[%clk 0:00:06]}  g5 {[%clk 0:00:13]} 53. Rf2 {[%clk 0:00:06]}  gxh4 {[%clk 0:00:13]} 54. gxh4 {[%clk 0:00:07]}  Qe4 {[%clk 0:00:13]} 55. Rg2+ {[%clk 0:00:07]}  Kf7 {[%clk 0:00:13]} 56. Rf2 {[%clk 0:00:08]}  Qxh4+ {[%clk 0:00:13]} 57. Kg2 {[%clk 0:00:08]}  Qg4+ {[%clk 0:00:14]} 58. Kf1 {[%clk 0:00:08]}  Kg6 {[%clk 0:00:15]} 59. Rd2 {[%clk 0:00:08]}  f5 {[%clk 0:00:16]} 60. Rd8 {[%clk 0:00:08]}  Kg5 {[%clk 0:00:16]} 61. Rg8+ {[%clk 0:00:09]}  Kf4 {[%clk 0:00:17]} 62. Rb8 {[%clk 0:00:09]}  Qf3+ {[%clk 0:00:18]} 63. Kg1 {[%clk 0:00:09]}  Qd1+ {[%clk 0:00:18]} 64. Kf2 {[%clk 0:00:10]}  Qd2+ {[%clk 0:00:18]} 65. Kf1 {[%clk 0:00:10]}  Qd3+ {[%clk 0:00:17]} 66. Kf2 {[%clk 0:00:10]}  Qf3+ {[%clk 0:00:17]} 67. Kg1 {[%clk 0:00:11]}  h4 {[%clk 0:00:15]} 68. Rb4+ {[%clk 0:00:10]}  Kg5 {[%clk 0:00:15]} 69. Rb8 {[%clk 0:00:10]}  Qg3+ {[%clk 0:00:15]} 70. Kh1 {[%clk 0:00:11]}  Qxb8 {[%clk 0:00:16]} 71. Kg2 {[%clk 0:00:12]}  Qg3+ {[%clk 0:00:16]} 72. Kh1 {[%clk 0:00:12]}  Qg4 {[%clk 0:00:16]} 73. Kh2 {[%clk 0:00:13]}  Kf4 {[%clk 0:00:17]} 74. Kh1 {[%clk 0:00:13]}  Kf3 {[%clk 0:00:18]} 75. Kh2 {[%clk 0:00:14]}  Kf2 {[%clk 0:00:19]} 76. Kh1 {[%clk 0:00:15]}  Qh3# {[%clk 0:00:20]} 0-1


[Site "https://www.chess.com"]

[Event "Titled Tuesday Blitz June 6 Early 2023"]
[White "Kramnik, Vladimir"]
[Black "Samadov, Read"]
[WhiteFideId "4101588"]
[BlackFideId "13417444"]
[WhiteElo "2703"]
[BlackElo "2355"]
[Result "0-1"]
[Round "11"]
[TimeControl "180+2"]
[Date "2023.06.06"]
[WhiteClock "0:00:01"]
[BlackClock "0:00:03"]
[Board "5"]

1. c4 {[%clk 0:03:00]}  Nf6 {[%clk 0:02:58]} 2. Nc3 {[%clk 0:03:00]}  g6 {[%clk 0:02:58]} 3. g3 {[%clk 0:03:00]}  Bg7 {[%clk 0:02:58]} 4. Bg2 {[%clk 0:03:00]}  O-O {[%clk 0:02:58]} 5. d3 {[%clk 0:03:00]}  c5 {[%clk 0:02:51]} 6. Rb1 {[%clk 0:02:55]}  Nc6 {[%clk 0:02:50]} 7. a3 {[%clk 0:02:55]}  a5 {[%clk 0:02:37]} 8. e3 {[%clk 0:02:47]}  e6 {[%clk 0:02:35]} 9. Nge2 {[%clk 0:02:45]}  d5 {[%clk 0:02:34]} 10. O-O {[%clk 0:02:45]}  b6 {[%clk 0:02:29]} 11. Nf4 {[%clk 0:02:39]}  Ne7 {[%clk 0:02:24]} 12. b4 {[%clk 0:02:32]}  axb4 {[%clk 0:02:23]} 13. axb4 {[%clk 0:02:32]}  Ba6 {[%clk 0:02:20]} 14. bxc5 {[%clk 0:02:24]}  bxc5 {[%clk 0:02:20]} 15. Qc2 {[%clk 0:01:54]}  dxc4 {[%clk 0:02:06]} 16. dxc4 {[%clk 0:01:52]}  Bxc4 {[%clk 0:01:39]} 17. Rd1 {[%clk 0:01:51]}  Qc8 {[%clk 0:01:39]} 18. Bb7 {[%clk 0:01:35]}  Qe8 {[%clk 0:01:36]} 19. Bxa8 {[%clk 0:01:18]}  Qxa8 {[%clk 0:01:37]} 20. Qa4 {[%clk 0:01:17]}  Qxa4 {[%clk 0:01:31]} 21. Nxa4 {[%clk 0:01:17]}  g5 {[%clk 0:01:11]} 22. Nd3 {[%clk 0:01:02]}  Ned5 {[%clk 0:00:51]} 23. Ndxc5 {[%clk 0:00:44]}  Rc8 {[%clk 0:00:45]} 24. Bb2 {[%clk 0:00:38]}  Be2 {[%clk 0:00:38]} 25. Rdc1 {[%clk 0:00:35]}  Rd8 {[%clk 0:00:34]} 26. Nc3 {[%clk 0:00:31]}  Bf3 {[%clk 0:00:28]} 27. Nxd5 {[%clk 0:00:29]}  Rxd5 {[%clk 0:00:29]} 28. Bd4 {[%clk 0:00:24]}  h5 {[%clk 0:00:26]} 29. Nd3 {[%clk 0:00:18]}  Ng4 {[%clk 0:00:20]} 30. Rb8+ {[%clk 0:00:16]}  Kh7 {[%clk 0:00:20]} 31. Bxg7 {[%clk 0:00:13]}  Rxd3 {[%clk 0:00:20]} 32. Bc3 {[%clk 0:00:11]}  Kg6 {[%clk 0:00:16]} 33. h3 {[%clk 0:00:11]}  Nh6 {[%clk 0:00:15]} 34. Kf1 {[%clk 0:00:06]}  g4 {[%clk 0:00:14]} 35. h4 {[%clk 0:00:05]}  f6 {[%clk 0:00:14]} 36. Ke1 {[%clk 0:00:05]}  e5 {[%clk 0:00:14]} 37. Rb6 {[%clk 0:00:04]}  Nf7 {[%clk 0:00:14]} 38. Ra6 {[%clk 0:00:04]}  Nd6 {[%clk 0:00:13]} 39. Bb4 {[%clk 0:00:03]}  Ne4 {[%clk 0:00:13]} 40. Ra2 {[%clk 0:00:03]}  Kf5 {[%clk 0:00:11]} 41. Rb2 {[%clk 0:00:03]}  Ke6 {[%clk 0:00:07]} 42. Bd2 {[%clk 0:00:03]}  Nd6 {[%clk 0:00:07]} 43. Rb6 {[%clk 0:00:02]}  Kf5 {[%clk 0:00:07]} 44. Rc3 {[%clk 0:00:03]}  Rd5 {[%clk 0:00:04]} 45. Rb2 {[%clk 0:00:03]}  Ne4 {[%clk 0:00:04]} 46. Rc1 {[%clk 0:00:04]}  Rd7 {[%clk 0:00:04]} 47. Ra1 {[%clk 0:00:04]}  Rc7 {[%clk 0:00:04]} 48. Rc1 {[%clk 0:00:04]}  Ra7 {[%clk 0:00:04]} 49. Bc3 {[%clk 0:00:03]}  Ra3 {[%clk 0:00:04]} 50. Rbc2 {[%clk 0:00:03]}  Nc5 {[%clk 0:00:03]} 51. Kf1 {[%clk 0:00:02]}  Nd3 {[%clk 0:00:04]} 52. Ra1 {[%clk 0:00:02]}  Rb3 {[%clk 0:00:03]} 53. Bd2 {[%clk 0:00:02]}  Be4 {[%clk 0:00:04]} 54. Rc3 {[%clk 0:00:01]}  Rb2 {[%clk 0:00:04]} 55. Be1 {[%clk 0:00:02]}  Nb4 {[%clk 0:00:03]} 56. Rd1 {[%clk 0:00:01]}  Nd5 {[%clk 0:00:03]} 57. Rcc1 {[%clk 0:00:01]}  Bf3 {[%clk 0:00:03]} 58. Rd2 {[%clk 0:00:01]}  Rb3 {[%clk 0:00:03]} 59. Kg1 {[%clk 0:00:02]}  Nc3 {[%clk 0:00:03]} 60. Rdc2 {[%clk 0:00:01]}  Ne2+ {[%clk 0:00:03]} 61. Rxe2 {[%clk 0:00:02]}  Bxe2 {[%clk 0:00:04]} 62. Bd2 {[%clk 0:00:02]}  Bf3 {[%clk 0:00:04]} 63. Be1 {[%clk 0:00:02]}  Rd3 {[%clk 0:00:04]} 64. Ra1 {[%clk 0:00:02]}  Rb3 {[%clk 0:00:03]} 65. Rc1 {[%clk 0:00:02]}  Rb2 {[%clk 0:00:04]} 66. Ra1 {[%clk 0:00:02]}  Rc2 {[%clk 0:00:04]} 67. Kf1 {[%clk 0:00:01]}  Be4 {[%clk 0:00:04]} 68. Kg1 {[%clk 0:00:01]}  Bd3 {[%clk 0:00:04]} 69. Rd1 {[%clk 0:00:01]}  Ke4 {[%clk 0:00:04]} 70. Kh2 {[%clk 0:00:01]}  Re2 {[%clk 0:00:03]} 71. Kg1 {[%clk 0:00:01]}  Kf3 {[%clk 0:00:03]} 0-1


[Site "https://www.chess.com"]

[Event "Titled Tuesday Blitz June 6 Early 2023"]
[White "Kukhmazov, Arsen"]
[Black "Paravyan, David"]
[WhiteFideId "24108260"]
[BlackFideId "4194985"]
[WhiteElo "2396"]
[BlackElo "2563"]
[Result "0-1"]
[Round "11"]
[TimeControl "180+2"]
[Date "2023.06.06"]
[WhiteClock "0:00:03"]
[BlackClock "0:01:45"]
[Board "9"]

1. d4 {[%clk 0:02:59]}  d5 {[%clk 0:03:00]} 2. c4 {[%clk 0:02:59]}  e6 {[%clk 0:03:01]} 3. Nf3 {[%clk 0:02:58]}  Nf6 {[%clk 0:03:01]} 4. e3 {[%clk 0:02:59]}  Be7 {[%clk 0:03:01]} 5. b3 {[%clk 0:02:59]}  O-O {[%clk 0:02:59]} 6. Bd3 {[%clk 0:02:59]}  c5 {[%clk 0:02:59]} 7. Bb2 {[%clk 0:02:59]}  cxd4 {[%clk 0:02:58]} 8. exd4 {[%clk 0:03:00]}  dxc4 {[%clk 0:02:57]} 9. bxc4 {[%clk 0:03:01]}  b6 {[%clk 0:02:57]} 10. O-O {[%clk 0:03:00]}  Bb7 {[%clk 0:02:57]} 11. Nbd2 {[%clk 0:03:00]}  Nc6 {[%clk 0:02:57]} 12. Qe2 {[%clk 0:02:59]}  Rc8 {[%clk 0:02:57]} 13. Rac1 {[%clk 0:02:59]}  Re8 {[%clk 0:02:57]} 14. h3 {[%clk 0:02:57]}  Bf8 {[%clk 0:02:56]} 15. Rfd1 {[%clk 0:02:55]}  Qc7 {[%clk 0:02:55]} 16. Ne4 {[%clk 0:02:44]}  Nxe4 {[%clk 0:02:52]} 17. Qxe4 {[%clk 0:02:45]}  g6 {[%clk 0:02:51]} 18. Qh4 {[%clk 0:02:39]}  Bg7 {[%clk 0:02:52]} 19. Bc3 {[%clk 0:02:11]}  Qd8 {[%clk 0:02:49]} 20. Qf4 {[%clk 0:01:50]}  Ne7 {[%clk 0:02:33]} 21. Ne5 {[%clk 0:01:45]}  Nf5 {[%clk 0:02:33]} 22. d5 {[%clk 0:01:23]}  Bh6 {[%clk 0:02:12]} 23. dxe6 {[%clk 0:00:50]}  Bxf4 {[%clk 0:01:55]} 24. exf7+ {[%clk 0:00:50]}  Kf8 {[%clk 0:01:56]} 25. Bxf5 {[%clk 0:00:31]}  Rxe5 {[%clk 0:01:49]} 26. Bxe5 {[%clk 0:00:16]}  Bxe5 {[%clk 0:01:43]} 27. Rxd8+ {[%clk 0:00:10]}  Rxd8 {[%clk 0:01:44]} 28. Be6 {[%clk 0:00:09]}  Ke7 {[%clk 0:01:44]} 29. Re1 {[%clk 0:00:02]}  Kxe6 {[%clk 0:01:44]} 30. f4 {[%clk 0:00:03]}  Kxf7 {[%clk 0:01:44]} 31. Rxe5 {[%clk 0:00:03]}  Rd2 {[%clk 0:01:45]} 0-1


[Site "https://www.chess.com"]

[Event "Titled Tuesday Blitz June 6 Early 2023"]
[White "Aradhya, Garg"]
[Black "Ibarra Jerez, Jose Carlos"]
[WhiteFideId "25006746"]
[BlackFideId "2226332"]
[WhiteElo "2263"]
[BlackElo "2631"]
[Result "1/2-1/2"]
[Round "11"]
[TimeControl "180+2"]
[Date "2023.06.06"]
[WhiteClock "0:00:10"]
[BlackClock "0:00:07"]
[Board "10"]

1. d4 {[%clk 0:03:00]}  Nf6 {[%clk 0:03:00]} 2. c4 {[%clk 0:03:01]}  d6 {[%clk 0:03:00]} 3. Nf3 {[%clk 0:03:01]}  g6 {[%clk 0:03:00]} 4. Nc3 {[%clk 0:03:01]}  Bf5 {[%clk 0:03:01]} 5. d5 {[%clk 0:02:58]}  e5 {[%clk 0:03:00]} 6. dxe6 {[%clk 0:02:57]}  Bxe6 {[%clk 0:03:01]} 7. Nd4 {[%clk 0:02:56]}  Bd7 {[%clk 0:03:01]} 8. e4 {[%clk 0:02:56]}  Bg7 {[%clk 0:03:02]} 9. Be2 {[%clk 0:02:57]}  O-O {[%clk 0:03:02]} 10. O-O {[%clk 0:02:57]}  Re8 {[%clk 0:03:03]} 11. f3 {[%clk 0:02:53]}  Nc6 {[%clk 0:03:03]} 12. Be3 {[%clk 0:02:54]}  Nh5 {[%clk 0:03:04]} 13. f4 {[%clk 0:02:44]}  Nf6 {[%clk 0:02:49]} 14. Bf3 {[%clk 0:02:43]}  Nxd4 {[%clk 0:02:27]} 15. Bxd4 {[%clk 0:02:43]}  c5 {[%clk 0:02:24]} 16. Bf2 {[%clk 0:02:41]}  Bc6 {[%clk 0:02:25]} 17. Qd3 {[%clk 0:02:34]}  Qb6 {[%clk 0:02:18]} 18. b3 {[%clk 0:02:19]}  Rad8 {[%clk 0:02:14]} 19. Rad1 {[%clk 0:02:20]}  Qa5 {[%clk 0:02:13]} 20. Rd2 {[%clk 0:02:13]}  a6 {[%clk 0:02:13]} 21. Bh4 {[%clk 0:01:59]}  Rd7 {[%clk 0:02:07]} 22. a4 {[%clk 0:01:42]}  Qb4 {[%clk 0:01:48]} 23. Qc2 {[%clk 0:01:36]}  Nh5 {[%clk 0:01:21]} 24. Na2 {[%clk 0:01:31]}  Qa3 {[%clk 0:01:21]} 25. Bxh5 {[%clk 0:01:15]}  Bxe4 {[%clk 0:01:09]} 26. Qd1 {[%clk 0:00:56]}  gxh5 {[%clk 0:01:09]} 27. f5 {[%clk 0:00:56]}  Be5 {[%clk 0:00:51]} 28. Qxh5 {[%clk 0:00:49]}  Qxb3 {[%clk 0:00:41]} 29. Qg4+ {[%clk 0:00:49]}  Kh8 {[%clk 0:00:39]} 30. Re2 {[%clk 0:00:28]}  Bd4+ {[%clk 0:00:31]} 31. Kh1 {[%clk 0:00:28]}  Qxc4 {[%clk 0:00:31]} 32. Rfe1 {[%clk 0:00:24]}  d5 {[%clk 0:00:31]} 33. f6 {[%clk 0:00:24]}  Rg8 {[%clk 0:00:18]} 34. Qxd7 {[%clk 0:00:24]}  Be5 {[%clk 0:00:12]} 35. Qxf7 {[%clk 0:00:19]}  Qd3 {[%clk 0:00:11]} 36. Bg3 {[%clk 0:00:19]}  Bxg3 {[%clk 0:00:09]} 37. hxg3 {[%clk 0:00:19]}  Qxg3 {[%clk 0:00:10]} 38. Qxg8+ {[%clk 0:00:13]}  Kxg8 {[%clk 0:00:10]} 39. Kg1 {[%clk 0:00:13]}  Kf7 {[%clk 0:00:10]} 40. Rf2 {[%clk 0:00:13]}  Qe5 {[%clk 0:00:08]} 41. Nc1 {[%clk 0:00:12]}  Qc3 {[%clk 0:00:07]} 42. Ref1 {[%clk 0:00:11]}  Bd3 {[%clk 0:00:06]} 43. Nxd3 {[%clk 0:00:09]}  Qxd3 {[%clk 0:00:07]} 44. Re1 {[%clk 0:00:09]}  Qd4 {[%clk 0:00:06]} 45. Re7+ {[%clk 0:00:10]}  Kf8 {[%clk 0:00:07]} 46. Rxb7 {[%clk 0:00:10]}  c4 {[%clk 0:00:07]} 47. f7 {[%clk 0:00:09]}  Qd1+ {[%clk 0:00:07]} 48. Rf1 {[%clk 0:00:09]}  Qd4+ {[%clk 0:00:07]} 49. Rf2 {[%clk 0:00:10]}  Qd1+ {[%clk 0:00:08]} 50. Kh2 {[%clk 0:00:10]}  Qh5+ {[%clk 0:00:08]} 51. Kg1 {[%clk 0:00:10]}  Qd1+ {[%clk 0:00:07]} 1/2-1/2


[Site "https://www.chess.com"]

[Event "Titled Tuesday Blitz June 6 Early 2023"]
[White "Csonka, Balazs"]
[Black "Pranav Anand"]
[WhiteFideId "742910"]
[BlackFideId "46626786"]
[WhiteElo "2404"]
[BlackElo "2389"]
[Result "0-1"]
[Round "11"]
[TimeControl "180+2"]
[Date "2023.06.06"]
[WhiteClock "0:00:02"]
[BlackClock "0:00:12"]
[Board "15"]

1. d4 {[%clk 0:03:00]}  Nf6 {[%clk 0:02:58]} 2. c4 {[%clk 0:03:00]}  g6 {[%clk 0:02:58]} 3. Nc3 {[%clk 0:02:58]}  Bg7 {[%clk 0:02:59]} 4. e4 {[%clk 0:02:53]}  d6 {[%clk 0:02:59]} 5. Nf3 {[%clk 0:02:53]}  O-O {[%clk 0:02:59]} 6. Be2 {[%clk 0:02:54]}  Bg4 {[%clk 0:02:58]} 7. Be3 {[%clk 0:02:48]}  Nfd7 {[%clk 0:02:58]} 8. O-O {[%clk 0:02:46]}  e5 {[%clk 0:02:58]} 9. d5 {[%clk 0:02:43]}  a5 {[%clk 0:02:57]} 10. Nd2 {[%clk 0:02:34]}  Bxe2 {[%clk 0:02:53]} 11. Qxe2 {[%clk 0:02:35]}  Na6 {[%clk 0:02:48]} 12. a3 {[%clk 0:02:32]}  f5 {[%clk 0:02:43]} 13. f3 {[%clk 0:02:32]}  Bf6 {[%clk 0:02:40]} 14. Rab1 {[%clk 0:02:19]}  Bg5 {[%clk 0:02:33]} 15. b4 {[%clk 0:02:18]}  h5 {[%clk 0:02:29]} 16. Rfd1 {[%clk 0:01:54]}  h4 {[%clk 0:02:24]} 17. h3 {[%clk 0:01:51]}  Qf6 {[%clk 0:02:19]} 18. Bf2 {[%clk 0:01:30]}  Bf4 {[%clk 0:02:14]} 19. c5 {[%clk 0:01:06]}  axb4 {[%clk 0:02:01]} 20. axb4 {[%clk 0:01:07]}  dxc5 {[%clk 0:02:01]} 21. bxc5 {[%clk 0:00:56]}  Naxc5 {[%clk 0:02:01]} 22. Nc4 {[%clk 0:00:55]}  Kh8 {[%clk 0:01:20]} 23. d6 {[%clk 0:00:41]}  c6 {[%clk 0:01:15]} 24. Nb6 {[%clk 0:00:41]}  Rad8 {[%clk 0:01:05]} 25. Nxd7 {[%clk 0:00:40]}  Nxd7 {[%clk 0:01:06]} 26. Rxb7 {[%clk 0:00:40]}  Qg5 {[%clk 0:01:03]} 27. Rc7 {[%clk 0:00:36]}  Bg3 {[%clk 0:01:00]} 28. Be3 {[%clk 0:00:36]}  Bf4 {[%clk 0:01:00]} 29. Bf2 {[%clk 0:00:35]}  Nf6 {[%clk 0:00:57]} 30. Rxc6 {[%clk 0:00:32]}  Nh5 {[%clk 0:00:57]} 31. Nd5 {[%clk 0:00:25]}  fxe4 {[%clk 0:00:49]} 32. Qxe4 {[%clk 0:00:22]}  Kh7 {[%clk 0:00:30]} 33. Ne7 {[%clk 0:00:14]}  Rd7 {[%clk 0:00:24]} 34. Rd5 {[%clk 0:00:06]}  Ng3 {[%clk 0:00:19]} 35. Bxg3 {[%clk 0:00:05]}  Qxg3 {[%clk 0:00:20]} 36. Rc7 {[%clk 0:00:03]}  Rfd8 {[%clk 0:00:18]} 37. Rxd7 {[%clk 0:00:02]}  Rxd7 {[%clk 0:00:19]} 38. Kf1 {[%clk 0:00:03]}  Qg5 {[%clk 0:00:18]} 39. Rd1 {[%clk 0:00:02]}  Bg3 {[%clk 0:00:17]} 40. f4 {[%clk 0:00:01]}  Bxf4 {[%clk 0:00:16]} 41. Qf3 {[%clk 0:00:02]}  Qf6 {[%clk 0:00:15]} 42. Qg4 {[%clk 0:00:02]}  Rxd6 {[%clk 0:00:14]} 43. Rxd6 {[%clk 0:00:02]}  Qxd6 {[%clk 0:00:14]} 44. Nc8 {[%clk 0:00:02]}  Qa6+ {[%clk 0:00:13]} 45. Ke1 {[%clk 0:00:01]}  Qa1+ {[%clk 0:00:11]} 46. Ke2 {[%clk 0:00:01]}  Qb2+ {[%clk 0:00:11]} 47. Kd1 {[%clk 0:00:01]}  Qc1+ {[%clk 0:00:11]} 48. Ke2 {[%clk 0:00:02]}  Qd2+ {[%clk 0:00:12]} 49. Kf1 {[%clk 0:00:02]}  Qd3+ {[%clk 0:00:12]} 50. Kf2 {[%clk 0:00:02]}  Bg3+ {[%clk 0:00:12]} 0-1


[Site "https://www.chess.com"]

[Event "Titled Tuesday Blitz June 6 Early 2023"]
[White "Korchmar, Vasiliy"]
[Black "Fernandez Guillen, Ernesto J."]
[WhiteFideId "24131750"]
[BlackFideId "3512428"]
[WhiteElo "2370"]
[BlackElo "2434"]
[Result "0-1"]
[Round "11"]
[TimeControl "180+2"]
[Date "2023.06.06"]
[WhiteClock "0:00:02"]
[BlackClock "0:01:12"]
[Board "20"]

1. e4 {[%clk 0:03:00]}  e5 {[%clk 0:02:59]} 2. Nf3 {[%clk 0:03:01]}  Nc6 {[%clk 0:03:00]} 3. Bc4 {[%clk 0:03:01]}  g6 {[%clk 0:03:00]} 4. d4 {[%clk 0:02:57]}  exd4 {[%clk 0:03:01]} 5. Nxd4 {[%clk 0:02:58]}  Bg7 {[%clk 0:03:00]} 6. Be3 {[%clk 0:02:55]}  Nge7 {[%clk 0:02:50]} 7. Nc3 {[%clk 0:02:53]}  O-O {[%clk 0:02:48]} 8. h4 {[%clk 0:02:51]}  h5 {[%clk 0:02:43]} 9. Qd2 {[%clk 0:02:42]}  Ne5 {[%clk 0:02:34]} 10. Bb3 {[%clk 0:02:18]}  c5 {[%clk 0:02:33]} 11. Nf3 {[%clk 0:02:18]}  c4 {[%clk 0:02:31]} 12. Nxe5 {[%clk 0:02:16]}  cxb3 {[%clk 0:02:32]} 13. Nc4 {[%clk 0:02:12]}  bxc2 {[%clk 0:02:31]} 14. Nd6 {[%clk 0:02:01]}  b6 {[%clk 0:02:31]} 15. g4 {[%clk 0:01:58]}  hxg4 {[%clk 0:02:02]} 16. h5 {[%clk 0:01:58]}  Ba6 {[%clk 0:01:44]} 17. Bh6 {[%clk 0:01:00]}  Qc7 {[%clk 0:01:28]} 18. hxg6 {[%clk 0:00:43]}  fxg6 {[%clk 0:01:24]} 19. Bxg7 {[%clk 0:00:41]}  Kxg7 {[%clk 0:01:24]} 20. Qh6+ {[%clk 0:00:13]}  Kf6 {[%clk 0:01:24]} 21. e5+ {[%clk 0:00:02]}  Ke6 {[%clk 0:01:15]} 22. Nce4 {[%clk 0:00:02]}  Rh8 {[%clk 0:01:12]} 0-1


[Site "https://www.chess.com"]

[Event "Titled Tuesday Blitz June 6 Early 2023"]
[White "Horvath, Dominik"]
[Black "Shuvalova, Polina"]
[WhiteFideId "1642561"]
[BlackFideId "24171760"]
[WhiteElo "2407"]
[BlackElo "2281"]
[Result "0-1"]
[Round "11"]
[TimeControl "180+2"]
[Date "2023.06.06"]
[WhiteClock "0:00:01"]
[BlackClock "0:00:29"]
[Board "21"]

1. e4 {[%clk 0:03:00]}  c6 {[%clk 0:02:56]} 2. d4 {[%clk 0:03:00]}  d5 {[%clk 0:02:56]} 3. e5 {[%clk 0:03:00]}  Bf5 {[%clk 0:02:56]} 4. h4 {[%clk 0:02:57]}  h5 {[%clk 0:02:56]} 5. Bd3 {[%clk 0:02:56]}  Bxd3 {[%clk 0:02:56]} 6. Qxd3 {[%clk 0:02:57]}  Qa5+ {[%clk 0:02:57]} 7. b4 {[%clk 0:02:56]}  Qa6 {[%clk 0:02:51]} 8. Qb3 {[%clk 0:02:56]}  e6 {[%clk 0:02:49]} 9. Nf3 {[%clk 0:02:52]}  Nd7 {[%clk 0:02:46]} 10. a4 {[%clk 0:02:45]}  b6 {[%clk 0:02:38]} 11. Bd2 {[%clk 0:02:41]}  Nh6 {[%clk 0:02:34]} 12. Nc3 {[%clk 0:02:41]}  Nf5 {[%clk 0:02:32]} 13. Ne2 {[%clk 0:02:33]}  Be7 {[%clk 0:02:28]} 14. a5 {[%clk 0:02:19]}  O-O {[%clk 0:02:20]} 15. Rg1 {[%clk 0:02:16]}  Rab8 {[%clk 0:02:12]} 16. c3 {[%clk 0:01:31]}  bxa5 {[%clk 0:02:09]} 17. Qd1 {[%clk 0:01:24]}  Bxh4 {[%clk 0:01:48]} 18. g4 {[%clk 0:01:15]}  hxg4 {[%clk 0:01:43]} 19. Nxh4 {[%clk 0:01:15]}  Nxh4 {[%clk 0:01:41]} 20. Rg3 {[%clk 0:00:22]}  f5 {[%clk 0:01:40]} 21. Nf4 {[%clk 0:00:19]}  Rbe8 {[%clk 0:01:34]} 22. Rxa5 {[%clk 0:00:19]}  Qc4 {[%clk 0:01:34]} 23. Qe2 {[%clk 0:00:19]}  Nf3+ {[%clk 0:01:21]} 24. Rxf3 {[%clk 0:00:19]}  gxf3 {[%clk 0:01:21]} 25. Qxc4 {[%clk 0:00:19]}  dxc4 {[%clk 0:01:21]} 26. Rxa7 {[%clk 0:00:20]}  Nb6 {[%clk 0:01:18]} 27. Rc7 {[%clk 0:00:19]}  Ra8 {[%clk 0:00:51]} 28. Nxe6 {[%clk 0:00:02]}  Ra1+ {[%clk 0:00:39]} 29. Bc1 {[%clk 0:00:02]}  Rf7 {[%clk 0:00:40]} 30. Kd2 {[%clk 0:00:01]}  Rxc7 {[%clk 0:00:34]} 31. Nxc7 {[%clk 0:00:02]}  Kf7 {[%clk 0:00:34]} 32. Kc2 {[%clk 0:00:01]}  Nd5 {[%clk 0:00:29]} 0-1


[Site "https://www.chess.com"]